bitfinex-derivatives/quotes_SOLF0:USTF0_20250117
["timestamp","ask_amount","ask_price","bid_price","bid_amount"]
[1737137843138,4.6153,216.6,216.55,86.36]
[1737137843839,17.99533082,216.65,216.55,86.36]
[1737137844238,4.6147,216.62,216.55,86.36]
[1737137844439,17.99533082,216.65,216.55,86.36]
[1737137844738,0.84829768,216.64,216.55,86.36]
[1737137844935,4.6159,216.57,216.51,7.5702]
[1737137846135,4.6156,216.58,216.51,7.5702]
[1737137846639,4.6158,216.57,216.51,2.9533]
[1737137847233,4.6158,216.57,216.51,7.5703]
[1737137847433,2.9264,216.63,216.51,2.9533]
[1737137848645,4.6151,216.6,216.51,2.9533]
[1737137848836,2.9264,216.63,216.51,2.9533]
[1737137849238,17.99533082,216.61,216.51,2.9533]
[1737137849438,17.99533082,216.61,216.47,4.6177]
[1737137849637,4.6164,216.54,216.45,5.08]
[1737137849839,17.99533082,216.61,216.45,5.08]
[1737137850143,17.99533082,216.61,216.46,4.6176]
[1737137850744,4.6161,216.54,216.47,4.6174]
[1737137851343,17.99533082,216.61,216.47,4.6174]
[1737137851536,4.6162,216.53,216.44,8.0637]
[1737137851740,4.6162,216.53,216.46,4.6177]
[1737137852235,17.99533082,216.61,216.46,4.6177]
[1737137852441,4.6164,216.52,216.46,4.6177]
[1737137852644,17.99533082,216.61,216.47,4.6174]
[1737137852845,4.6161,216.54,216.47,4.6174]
[1737137853144,17.99533082,216.61,216.47,4.6174]
[1737137854837,4.6163,216.53,216.48,4.6172]
[1737137855042,17.99533082,216.61,216.44,3.1874]
[1737137855546,4.6154,216.57,216.52,4.6163]
[1737137855942,11.25762219,216.6,216.47,11.25762219]
[1737137856943,4.6153,216.58,216.5,4.6166]
[1737137857144,14.18402219,216.63,216.5,11.25762219]
[1737137857547,4.6145,216.62,216.56,4.6154]
[1737137858345,4.6145,216.61,216.56,4.6154]
[1737137859148,4.6147,216.6,216.51,5.08]
[1737137859354,4.6147,216.6,216.55,4.6157]
[1737137859642,14.18402219,216.63,216.51,5.08]
[1737137860048,4.6147,216.6,216.55,4.6157]
[1737137860349,4.6147,216.6,216.51,5.08]
[1737137860949,11.25762219,216.66,216.51,5.08]
[1737137861147,11.25762219,216.66,216.52,5.9301]
[1737137861545,4.6142,216.63,216.57,4.6152]
[1737137862151,4.6143,216.62,216.57,4.6152]
[1737137863754,4.6149,216.6,216.55,4.6157]
[1737137863953,11.25762219,216.63,216.53,3.1224]
[1737137864855,4.6151,216.59,216.54,4.6159]
[1737137865551,4.6143,216.62,216.53,3.1224]
[1737137865754,4.6143,216.62,216.53,14.38002219]
[1737137866455,4.6146,216.61,216.53,14.38002219]
[1737137868048,4.6146,216.61,216.56,4.6154]
[1737137869750,11.25762219,216.66,216.56,4.6154]
[1737137869958,4.6143,216.62,216.56,4.6154]
[1737137871957,4.6143,216.62,216.53,14.38002219]
[1737137872162,4.6143,216.62,216.57,4.6153]
[1737137875058,4.6141,216.63,216.58,4.6151]
[1737137875458,3.057,216.68,216.53,14.38002219]
[1737137875658,4.6138,216.65,216.53,14.38002219]
[1737137876464,4.6134,216.66,216.56,11.25762219]
[1737137876859,4.6134,216.66,216.6,4.6145]
[1737137877361,4.6136,216.65,216.6,4.6145]
[1737137877566,4.6136,216.65,216.59,4.6149]
[1737137878055,4.6138,216.64,216.59,4.6149]
[1737137878259,14.15952219,216.69,216.59,4.6149]
[1737137880067,4.6136,216.66,216.6,4.6146]
[1737137880568,4.6137,216.65,216.6,4.6146]
[1737137881059,193.25809109,216.71,216.63,4.614]
[1737137881257,193.25809109,216.71,216.59,11.25762219]
[1737137881463,193.25809109,216.71,216.6,6.3459]
[1737137881665,4.6129,216.69,216.63,4.614]
[1737137882567,4.6129,216.69,216.64,4.6138]
[1737137883470,4.6129,216.69,216.63,4.614]
[1737137883664,11.25762219,216.7,216.61,2.9226]
[1737137883865,11.25762219,216.7,216.56,11.25762219]
[1737137884470,4.6135,216.66,216.6,4.6145]
[1737137886579,11.25762219,216.7,216.59,11.25762219]
[1737137886874,11.25762219,216.73,216.59,11.25762219]
[1737137887375,3.1733,216.74,216.62,11.25762219]
[1737137887582,204.51571328,216.76,216.63,3.1881]
[1737137887873,4.6117,216.74,216.67,4.613]
[1737137888075,193.25809109,216.76,216.65,11.25762219]
[1737137888574,193.25809109,216.76,216.68,11.25762219]
[1737137888973,193.25809109,216.82,216.76,4.6113]
[1737137890278,4.6099,216.83,216.76,4.6113]
[1737137890676,15.86722219,216.85,216.74,11.25762219]
[1737137891075,11.25762219,216.85,216.74,11.25762219]
[1737137891376,196.32359109,216.87,216.74,11.25762219]
[1737137891779,4.6093,216.86,216.78,4.6108]
[1737137892878,4.6097,216.84,216.77,11.25762219]
[1737137893074,450.93554588,216.91,216.77,11.25762219]
[1737137893275,11.25762219,216.9,216.77,11.25762219]
[1737137893580,4.6094,216.86,216.78,4.6108]
[1737137894077,4.6094,216.86,216.77,11.25762219]
[1737137894275,11.25762219,216.9,216.77,11.25762219]
[1737137894581,4.6094,216.85,216.77,11.25762219]
[1737137894774,11.25762219,216.87,216.75,4.6115]
[1737137895080,4.6099,216.83,216.75,4.6115]
[1737137895272,4.6099,216.83,216.76,4.6112]
[1737137896171,11.25762219,216.87,216.77,4.611]
[1737137896380,4.6086,216.89,216.77,11.25762219]
[1737137896577,11.25762219,216.9,216.77,11.25762219]
[1737137896776,14.19882219,216.9,216.77,11.25762219]
[1737137896975,4.6098,216.84,216.74,11.25762219]
[1737137897285,11.25762219,216.87,216.79,4.6106]
[1737137898074,4.6093,216.86,216.79,4.6106]
[1737137898280,14.19882219,216.9,216.77,11.25762219]
[1737137899077,4.6091,216.87,216.8,4.6103]
[1737137899883,4.6088,216.88,216.77,11.25762219]
[1737137900480,4.6088,216.88,216.82,4.61]
[1737137903180,4.609,216.87,216.81,4.6102]
[1737137904082,4.609,216.87,216.8,11.25762219]
[1737137904083,11.25762219,216.9,216.79,4.6105]
[1737137904782,4.6093,216.86,216.8,4.6104]
[1737137906875,4.6093,216.86,216.77,11.25762219]
[1737137907273,4.609,216.87,216.81,4.61]
[1737137907981,11.25762219,216.9,216.81,4.61]
[1737137908180,11.25762219,216.9,216.82,4.6099]
[1737137909082,4.6089,216.87,216.82,4.6099]
[1737137909282,11.25762219,216.9,216.77,11.25762219]
[1737137909480,11.25762219,216.9,216.82,4.6098]
[1737137909675,4.6089,216.88,216.82,4.6098]
[1737137910279,4.6089,216.88,216.77,11.25762219]
[1737137910280,4.6089,216.88,216.83,4.6097]
[1737137911883,4.6089,216.88,216.82,4.61]
[1737137912081,11.25762219,216.94,216.8,11.25762219]
[1737137912279,0.84721058,216.93,216.8,11.25762219]
[1737137912481,4.6082,216.91,216.84,4.6095]
[1737137912785,11.25762219,216.91,216.8,11.25762219]
[1737137914284,11.25762219,216.91,216.82,4.61]
[1737137914879,4.6089,216.88,216.82,4.61]
[1737137915580,4.6085,216.9,216.8,11.25762219]
[1737137915975,11.25762219,216.94,216.8,11.25762219]
[1737137916285,4.6079,216.92,216.83,11.25762219]
[1737137917382,204.51571328,217.0,216.86,11.25762219]
[1737137917885,204.51571328,217.0,216.87,2.9363]
[1737137918084,4.607,216.97,216.9,4.6081]
[1737137918280,3.0247,217.02,216.89,11.25762219]
[1737137918985,193.25809109,217.03,216.89,11.25762219]
[1737137919386,14.28232219,217.04,216.91,4.6079]
[1737137919685,0.84680512,217.03,216.91,4.6079]
[1737137919883,14.28232219,217.04,216.91,4.6079]
[1737137920083,14.28232219,217.04,216.89,11.25762219]
[1737137920283,14.28232219,217.04,216.93,4.6076]
[1737137920586,4.6064,217.0,216.93,4.6076]
[1737137920884,14.28232219,217.04,216.91,4.6081]
[1737137921189,14.28232219,217.04,216.89,11.25762219]
[1737137921378,4.6067,216.98,216.92,4.6078]
[1737137922083,14.28232219,217.04,216.93,4.6075]
[1737137923089,4.6067,216.98,216.92,4.6079]
[1737137923286,14.28232219,217.04,216.89,11.25762219]
[1737137923584,0.84673691,217.03,216.89,11.25762219]
[1737137923785,4.6068,216.98,216.91,4.6081]
[1737137923985,11.25762219,217.01,216.87,7.9963]
[1737137924688,4.607,216.97,216.9,4.6082]
[1737137925488,14.28232219,217.04,216.89,11.25762219]
[1737137925787,0.84676396,217.03,216.89,11.25762219]
[1737137926287,14.28232219,217.04,216.92,11.25762219]
[1737137926787,4.606,217.01,216.95,4.6072]
[1737137927492,196.30069109,217.08,216.95,4.6072]
[1737137927493,196.30069109,217.08,216.95,11.25762219]
[1737137928086,4.6053,217.04,216.98,4.6066]
[1737137928880,3.0426,217.08,216.97,4.6067]
[1737137929285,3.0426,217.08,216.98,4.6066]
[1737137930288,3.0426,217.08,216.93,5.9632]
[1737137930487,3.0426,217.08,216.96,11.25762219]
[1737137930684,3.0426,217.08,216.99,11.25762219]
[1737137931290,3.0426,217.08,217.02,4.6057]
[1737137931589,11.25762219,217.14,216.99,11.25762219]
[1737137931788,11.25762219,217.14,217.02,11.25762219]
[1737137931988,17.36762219,217.17,217.02,11.25762219]
[1737137932683,4.6037,217.12,217.06,4.6049]
[1737137932890,11.25762219,217.14,216.99,11.25762219]
[1737137933490,4.6045,217.08,217.02,4.6057]
[1737137934086,4.6043,217.09,217.02,4.6057]
[1737137935987,11.25762219,217.14,216.99,11.25762219]
[1737137936192,4.6047,217.07,217.0,4.606]
[1737137936683,4.6047,217.07,217.01,4.6059]
[1737137938594,11.25762219,217.11,217.0,4.6061]
[1737137939294,4.6049,217.07,217.0,4.6061]
[1737137939997,4.6051,217.06,217.0,4.6061]
[1737137940293,6.11,217.17,216.98,4.6065]
[1737137940294,11.25762219,217.08,216.98,4.6065]
[1737137940494,11.25762219,217.08,216.97,8.0303]
[1737137940690,4.6049,217.06,216.97,8.0303]
[1737137940995,4.6049,217.06,217.0,4.6062]
[1737137944092,4.6049,217.06,216.97,8.0303]
[1737137944294,4.6049,217.06,217.01,4.606]
[1737137945191,4.6049,217.06,217.0,4.6061]
[1737137945596,4.6053,217.04,216.99,7.17226918]
[1737137946494,7.17226918,217.06,216.99,7.17226918]
[1737137947087,4.6054,217.04,216.99,7.17226918]
[1737137947993,7.17226918,217.06,216.98,4.6066]
[1737137948200,4.6056,217.03,216.99,7.17226918]
[1737137948897,193.25809109,217.16,216.99,7.17226918]
[1737137949199,7.17226918,217.08,217.01,7.17226918]
[1737137949388,4.6062,217.0,216.97,7.17226918]
[1737137949589,7.17226918,217.06,216.94,5.04]
[1737137949892,7.17226918,217.06,216.98,7.17226918]
[1737137950698,7.17226918,217.04,216.98,7.17226918]
[1737137951599,7.17226918,217.02,216.94,7.17226918]
[1737137952094,4.6066,216.99,216.94,7.17226918]
[1737137952399,7.17226918,216.96,216.86,6.0284]
[1737137952594,7.17226918,216.93,216.86,13.20066918]
[1737137952799,7.17226918,216.93,216.86,17.80976918]
[1737137953797,7.17226918,216.93,216.86,7.17226918]
[1737137954001,7.17226918,216.89,216.83,7.17226918]
[1737137954198,7.17226918,216.89,216.82,10.34646918]
[1737137955098,11.78076918,216.89,216.82,14.95646918]
[1737137955498,4.6085,216.89,216.82,7.7842]
[1737137957800,4.6077,216.94,216.86,4.609]
[1737137958003,11.22320902,216.96,216.83,11.22320902]
[1737137958595,4.6073,216.95,216.86,11.22320902]
[1737137958803,11.22320902,216.99,216.86,11.22320902]
[1737137959005,3.1453,217.0,216.89,11.22320902]
[1737137959205,3.1002,217.01,216.92,11.22320902]
[1737137960205,7.7062,217.01,216.93,4.6075]
[1737137960905,3.1002,217.01,216.95,4.6072]
[1737137962802,4.6058,217.02,216.95,4.6072]
[1737137963000,11.22320902,217.05,216.92,11.22320902]
[1737137963203,11.22320902,217.02,216.9,3.1699]
[1737137963609,4.607,216.97,216.9,7.7782]
[1737137963810,4.607,216.97,216.88,5.04]
[1737137963811,11.22320902,216.99,216.88,5.04]
[1737137964111,11.22320902,216.96,216.83,20.24050902]
[1737137964304,4.608,216.92,216.83,20.24050902]
[1737137964912,4.608,216.92,216.85,4.6092]
[1737137965907,4.6077,216.93,216.85,4.6092]
[1737137967612,4.6077,216.93,216.86,4.6091]
[1737137970814,4.6069,216.97,216.86,11.22320902]
[1737137971113,4.6069,216.97,216.87,3.1346]
[1737137971312,14.37500902,216.98,216.89,4.6085]
[1737137971511,4.6077,216.93,216.87,3.1346]
[1737137972110,14.37500902,216.98,216.87,3.1346]
[1737137972408,4.6075,216.94,216.87,3.1346]
[1737137972614,14.37500902,216.98,216.87,3.1346]
[1737137972810,4.6074,216.95,216.89,4.6085]
[1737137974208,3.1518,216.98,216.88,11.22320902]
[1737137974426,11.22320902,217.04,216.88,14.16800902]
[1737137974713,11.22320902,217.01,216.88,14.16800902]
[1737137974903,11.22320902,217.01,216.87,3.1346]
[1737137975511,4.6074,216.95,216.88,4.6086]
[1737137975914,11.22320902,217.01,216.87,3.1346]
[1737137976112,11.22320902,216.98,216.89,4.6084]
[1737137977617,4.6074,216.95,216.89,4.6084]
[1737137978712,4.6079,216.92,216.86,4.6091]
[1737137980620,4.6079,216.92,216.82,14.16800902]
[1737137980817,4.6079,216.92,216.85,4.6093]
[1737137981521,4.6082,216.91,216.85,4.6093]
[1737137981720,4.6082,216.91,216.84,90.8695]
[1737137982625,4.6079,216.92,216.85,4.6093]
[1737137982818,11.22320902,216.95,216.84,86.26]
[1737137983218,4.6078,216.93,216.85,11.22320902]
[1737137983425,2.9967,216.97,216.88,11.22320902]
[1737137984223,4.6072,216.96,216.9,4.6082]
[1737137985217,2.9967,216.97,216.88,11.22320902]
[1737137985415,4.6073,216.95,216.89,4.6085]
[1737137985617,4.6073,216.95,216.85,14.30930902]
[1737137985618,2.9967,216.97,216.85,14.30930902]
[1737137985920,4.6077,216.93,216.87,4.6088]
[1737137986725,11.22320902,216.97,216.85,14.30930902]
[1737137986931,11.22320902,217.0,216.85,14.30930902]
[1737137987531,11.22320902,216.97,216.85,14.30930902]
[1737137988235,11.22320902,216.97,216.85,7.6954]
[1737137988434,11.22320902,216.97,216.85,3.0861]
[1737137988832,11.22320902,216.97,216.85,14.30930902]
[1737137989138,11.22320902,217.0,216.88,11.22320902]
[1737137989331,4.6067,216.98,216.92,4.6079]
[1737137989635,11.22320902,217.0,216.88,11.22320902]
[1737137989834,4.6071,216.96,216.89,4.6083]
[1737137990833,11.22320902,217.0,216.87,4.6088]
[1737137991036,11.22320902,217.0,216.86,2.9288]
[1737137991535,4.6075,216.95,216.88,4.6085]
[1737137992735,11.22320902,217.0,216.87,4.6089]
[1737137992938,11.22320902,216.97,216.87,4.6089]
[1737137993540,4.6076,216.94,216.87,4.6089]
[1737137994939,4.6075,216.94,216.87,4.6089]
[1737137995141,11.22320902,216.97,216.87,4.6089]
[1737137997339,4.6075,216.94,216.87,4.6089]
[1737137997941,11.22320902,216.97,216.87,4.6089]
[1737137998137,4.6075,216.94,216.86,2.9288]
[1737137998444,4.6075,216.94,216.88,4.6086]
[1737137999341,4.6075,216.94,216.88,11.78787426]
[1737138001240,4.6075,216.94,216.88,4.6086]
[1737138001441,4.6075,216.94,216.88,11.78787426]
[1737138001836,7.17927426,216.91,216.85,3.0861]
[1737138002043,7.17927426,216.91,216.86,7.17927426]
[1737138002243,11.78717426,216.93,216.88,7.17927426]
[1737138002440,7.17927426,216.95,216.88,7.17927426]
[1737138003743,4.6077,216.93,216.88,7.17927426]
[1737138004041,7.17927426,216.95,216.9,7.17927426]
[1737138005140,4.6075,216.94,216.9,7.17927426]
[1737138005836,4.607,216.97,216.9,7.17927426]
[1737138006038,7.17927426,216.99,216.92,7.17927426]
[1737138006233,257.67745479,217.03,216.96,7.17927426]
[1737138006437,257.67745479,217.03,216.98,7.17927426]
[1737138006639,257.67745479,217.03,217.0,7.17927426]
[1737138006943,257.67745479,217.03,217.01,4.6059]
[1737138007143,257.67745479,217.03,217.0,7.17927426]
[1737138007335,10.38217426,217.08,217.02,7.17927426]
[1737138008043,14.98667426,217.08,217.02,11.78507426]
[1737138008240,7.17927426,217.06,216.91,3.0379]
[1737138008445,7.17927426,217.04,216.98,7.17927426]
[1737138008943,4.6056,217.03,216.98,7.17927426]
[1737138009633,4.6064,216.99,216.93,11.20881455]
[1737138009834,4.6064,216.99,216.91,3.0379]
[1737138010246,11.20881455,217.01,216.91,3.0379]
[1737138010844,11.20881455,217.01,216.92,4.6079]
[1737138010845,4.6064,217.0,216.92,4.6079]
[1737138011345,4.6065,216.99,216.92,4.6079]
[1737138011547,11.20881455,217.01,216.92,4.6079]
[1737138012746,11.20881455,217.01,216.91,3.0379]
[1737138012949,4.6071,216.96,216.9,5.04]
[1737138013347,3.0669,217.0,216.89,4.6083]
[1737138013348,11.20881455,216.98,216.89,4.6083]
[1737138013740,4.6073,216.95,216.89,4.6083]
[1737138018143,4.6071,216.96,216.9,4.6083]
[1737138018347,6.2344,217.0,216.87,11.20881455]
[1737138020152,4.6071,216.96,216.9,4.6083]
[1737138021244,4.607,216.96,216.91,4.608]
[1737138021441,3.0669,217.0,216.87,11.20881455]
[1737138022051,3.0669,217.0,216.9,11.20881455]
[1737138022648,11.20881455,217.02,216.9,11.20881455]
[1737138023349,4.6064,216.99,216.9,11.20881455]
[1737138023854,11.20881455,217.02,216.87,11.20881455]
[1737138024050,3.0072,217.01,216.87,11.20881455]
[1737138024451,4.6073,216.95,216.89,4.6085]
[1737138024853,11.20881455,216.99,216.87,11.20881455]
[1737138025049,4.6075,216.94,216.88,4.6086]
[1737138025555,4.6075,216.94,216.89,4.6085]
[1737138027154,11.20881455,216.99,216.85,14.29491455]
[1737138027355,11.20881455,216.99,216.91,4.6079]
[1737138027555,11.20881455,216.99,216.85,14.29491455]
[1737138029055,4.6071,216.96,216.9,4.6083]
[1737138030251,4.6071,216.96,216.91,4.608]
[1737138031157,4.6069,216.97,216.91,4.608]
[1737138031556,4.6069,216.97,216.91,11.78526879]
[1737138033256,7.17726879,216.99,216.93,7.17726879]
[1737138033456,7.17726879,216.99,216.91,7.17726879]
[1737138033661,7.17726879,216.97,216.91,7.17726879]
[1737138034253,4.6071,216.96,216.85,3.0861]
[1737138034459,4.6071,216.96,216.9,7.17726879]
[1737138034752,4.6073,216.95,216.89,4.6085]
[1737138034957,4.6073,216.95,216.89,11.78576879]
[1737138035855,4.6075,216.94,216.89,4.6085]
[1737138039860,4.6075,216.94,216.89,11.78576879]
[1737138044868,4.6077,216.93,216.89,11.78576879]
[1737138047466,3.0072,217.01,216.91,7.17726879]
[1737138047671,7.17726879,216.99,216.93,7.17726879]
[1737138047870,10.18446879,217.01,216.93,7.17726879]
[1737138048070,4.6066,216.99,216.93,11.78476879]
[1737138048371,4.6066,216.99,216.93,7.17726879]
[1737138048869,11.78326879,217.01,216.95,7.17726879]
[1737138049262,200.43535988,217.03,216.97,7.17726879]
[1737138049467,4.6058,217.02,216.97,7.17726879]
[1737138049668,200.43535988,217.03,216.86,16.9464]
[1737138049869,7.17726879,217.01,216.95,11.78436879]
[1737138051065,4.6063,217.0,216.95,11.78436879]
[1737138052571,7.17726879,216.99,216.91,7.17726879]
[1737138053168,4.6069,216.97,216.91,4.6079]
[1737138053474,11.78416879,216.97,216.91,4.6079]
[1737138053870,4.6066,216.98,216.92,7.17726879]
[1737138054065,4.6066,216.98,216.92,11.78516879]
[1737138058172,4.6066,216.98,216.92,7.17726879]
[1737138058377,4.6066,216.98,216.94,7.17726879]
[1737138059473,193.25809109,217.04,216.87,13.85]
[1737138059673,193.25809109,217.04,216.98,7.17726879]
[1737138059977,193.25809109,217.04,217.0,7.17726879]
[1737138060182,193.25809109,217.04,217.0,11.78346879]
[1737138060375,193.25809109,217.04,217.0,7.17726879]
[1737138060776,7.17726879,217.02,216.94,8.9346]
[1737138060975,7.17726879,217.0,216.94,8.9346]
[1737138061178,4.6064,216.99,216.94,2.9792]
[1737138061377,8.32850467,217.09,216.98,7.17726879]
[1737138061579,6.99976286,217.09,216.98,7.17726879]
[1737138061775,7.17726879,217.05,216.99,4.6062]
[1737138061975,7.17726879,217.05,216.98,7.17726879]
[1737138062170,7.17726879,217.07,217.0,7.17726879]
[1737138062376,11.78206879,217.07,217.02,7.17726879]
[1737138062575,7.17726879,217.08,217.02,7.17726879]
[1737138062779,200.43535988,217.1,217.02,7.17726879]
[1737138062974,4.6043,217.09,217.03,4.6055]
[1737138063174,193.25809109,217.1,217.04,7.17726879]
[1737138063478,7.17726879,217.13,217.06,7.17726879]
[1737138063677,193.25809109,217.14,217.06,7.17726879]
[1737138063880,7.17726879,217.13,217.06,7.17726879]
[1737138064078,7.17726879,217.13,217.08,7.17726879]
[1737138065275,193.25809109,217.22,217.08,7.17726879]
[1737138065481,7.17726879,217.16,217.08,7.17726879]
[1737138065678,7.17726879,217.14,217.08,7.17726879]
[1737138066679,197.85959109,217.22,217.13,7.17726879]
[1737138066877,200.43535988,217.22,217.15,7.17726879]
[1737138067381,7.17726879,217.18,217.13,7.17726879]
[1737138067680,7.17726879,217.2,217.13,7.17726879]
[1737138069078,7.17726879,217.2,217.13,11.78056879]
[1737138070181,11.77926879,217.2,217.13,11.78056879]
[1737138071180,9.0712,217.3,217.13,7.17726879]
[1737138071371,7.17726879,217.19,217.12,7.687]
[1737138071573,7.17726879,217.17,217.11,5.02]
[1737138071877,7.17726879,217.15,217.09,7.17726879]
[1737138072074,7.17726879,217.15,217.09,11.78156879]
[1737138072478,7.17726879,217.16,217.09,7.17726879]
[1737138072684,7.17726879,217.16,217.1,4.604]
[1737138072880,7.17726879,217.14,217.09,7.17726879]
[1737138073680,7.17726879,217.14,217.09,11.78156879]
[1737138074082,11.78026879,217.15,217.09,11.78156879]
[1737138075183,7.17726879,217.15,217.09,11.78156879]
[1737138078679,11.78026879,217.15,217.09,11.78156879]
[1737138079384,7.17726879,217.15,217.09,7.17726879]
[1737138079585,7.17726879,217.15,217.1,4.604]
[1737138079782,4.6028,217.16,217.1,4.604]
[1737138080787,7.17726879,217.17,217.1,4.604]
[1737138081088,4.603,217.15,217.1,4.604]
[1737138081590,4.6034,217.13,217.09,7.17726879]
[1737138081783,7.17726879,217.11,217.07,6.76033773]
[1737138082089,11.78166879,217.09,217.03,93.9197]
[1737138082288,7.17726879,217.09,217.03,86.22]
[1737138082784,4.6045,217.08,217.03,86.22]
[1737138082984,9.3118,217.22,217.04,7.17726879]
[1737138083192,7.17726879,217.13,217.06,7.17726879]
[1737138083385,7.17726879,217.15,217.08,7.17726879]
[1737138084384,7.17726879,217.15,217.08,11.78156879]
[1737138084589,7.17726879,217.15,217.08,7.17726879]
[1737138084782,4.6037,217.12,217.03,86.22]
[1737138084987,4.6037,217.12,217.07,7.17726879]
[1737138086493,4.6033,217.14,217.08,4.6044]
[1737138086691,7.17726879,217.13,217.07,7.17726879]
[1737138087089,7.17726879,217.15,217.07,7.17726879]
[1737138087289,7.17726879,217.15,217.09,7.17726879]
[1737138088194,4.6035,217.13,217.09,7.17726879]
[1737138088395,7.17726879,217.15,217.09,7.17726879]
[1737138088896,4.6034,217.14,217.09,11.78156879]
[1737138089292,4.6035,217.13,217.09,7.17726879]
[1737138091092,4.6035,217.13,217.08,11.78166879]
[1737138091492,7.17726879,217.15,217.08,11.78166879]
[1737138091697,4.6037,217.12,217.08,4.6044]
[1737138092194,4.6038,217.11,217.07,4.6047]
[1737138092394,4.6038,217.11,217.08,7.17726879]
[1737138092595,7.17726879,217.14,217.08,7.17726879]
[1737138092895,4.6037,217.12,217.08,11.78176879]
[1737138093796,4.6037,217.12,217.07,7.17726879]
[1737138093997,7.17726879,217.14,217.07,7.17726879]
[1737138094198,4.6037,217.12,217.07,7.17726879]
[1737138096195,4.6037,217.12,217.07,11.78176879]
[1737138097304,4.6037,217.12,217.09,7.17726879]
[1737138098400,4.6037,217.12,217.07,11.78176879]
[1737138099806,4.6039,217.11,217.07,7.17726879]
[1737138102110,7.17726879,217.1,217.03,86.22]
[1737138102411,7.17726879,217.1,217.04,7.17726879]
[1737138102910,4.6045,217.08,217.04,7.17726879]
[1737138104704,7.17726879,217.12,217.06,7.17726879]
[1737138105011,7.17726879,217.14,217.06,7.17726879]
[1737138105613,4.6042,217.1,217.06,7.17726879]
[1737138108108,7.17726879,217.12,217.04,7.17726879]
[1737138108412,7.17726879,217.13,217.06,7.17726879]
[1737138108911,4.6043,217.09,217.06,7.17726879]
[1737138109807,4.6041,217.1,217.06,7.17726879]
[1737138110915,7.17726879,217.15,217.06,7.17726879]
[1737138111309,7.17726879,217.15,217.08,7.17726879]
[1737138111607,4.6039,217.11,217.08,7.17726879]
[1737138114422,193.25809109,217.2,217.08,7.17726879]
[1737138114619,7.17726879,217.17,217.08,7.17726879]
[1737138115415,4.603,217.15,217.1,7.17726879]
[1737138115917,4.6032,217.14,217.1,7.17726879]
[1737138121621,4.603,217.15,217.08,4.6044]
[1737138121819,7.17726879,217.09,217.02,7.43862199]
[1737138122028,7.17726879,217.07,217.02,7.43862199]
[1737138122218,11.78216879,217.07,217.02,7.43862199]
[1737138122517,7.17726879,217.07,217.02,7.43862199]
[1737138122918,4.6051,217.06,217.02,7.43862199]
[1737138125324,11.78196879,217.07,217.02,7.43862199]
[1737138125826,2.9456,217.14,217.03,11.78266879]
[1737138126125,7.17726879,217.11,217.05,7.17726879]
[1737138126421,4.6037,217.12,217.07,7.17726879]
[1737138127127,4.6038,217.11,217.06,7.17726879]
[1737138127624,7.17726879,217.13,217.06,7.17726879]
[1737138128023,4.6038,217.12,217.06,11.78206879]
[1737138128228,7.17726879,217.13,217.06,11.78206879]
[1737138129128,4.6039,217.11,217.06,11.78206879]
[1737138130224,4.6034,217.13,217.08,7.17726879]
[1737138130420,193.25809109,217.21,217.12,7.17726879]
[1737138130621,193.25809109,217.21,217.14,7.17726879]
[1737138130826,4.6023,217.19,217.14,7.17726879]
[1737138131224,200.43535988,217.21,217.14,7.17726879]
[1737138131628,7.17726879,217.21,217.14,7.17726879]
[1737138132330,4.602,217.2,217.14,11.78046879]
[1737138132530,7.17726879,217.21,217.14,7.17726879]
[1737138132725,7.17726879,217.23,217.14,7.17726879]
[1737138133233,4.6018,217.21,217.15,4.6028]
[1737138133630,7.17726879,217.21,217.15,4.6028]
[1737138133823,4.6022,217.19,217.14,11.78046879]
[1737138134523,11.77916879,217.21,217.16,4.6028]
[1737138135432,7.17726879,217.21,217.16,4.6028]
[1737138135629,7.17726879,217.21,217.14,11.78026879]
[1737138135630,4.602,217.2,217.14,11.78026879]
[1737138135833,7.17726879,217.21,217.14,11.78026879]
[1737138136936,4.6023,217.19,217.15,4.603]
[1737138138637,4.6023,217.19,217.14,11.78046879]
[1737138138927,7.17726879,217.21,217.14,7.17726879]
[1737138139127,7.17726879,217.21,217.15,4.6029]
[1737138139525,11.77916879,217.21,217.15,4.6029]
[1737138139835,7.17726879,217.21,217.15,4.6029]